bitfinex/quotes_ETHUSD_20260203
["timestamp","ask_amount","ask_price","bid_price","bid_amount"]
[1770145332191,12.83399221,2123.0,2120.2,11.85483315]
[1770145332192,12.83399221,2122.8,2120.2,11.85483315]
[1770145332405,1.28339922,2122.7,2120.3,1.75613693]
[1770145332614,1.28339922,2122.7,2120.4,10.77809911]
[1770145332795,1.28339922,2122.7,2120.4,10.67569911]
[1770145332998,0.31544893,2122.3,2120.4,10.67569911]
[1770145334419,0.31544893,2122.3,2120.5,1.17896722]
[1770145334626,0.31544893,2122.3,2120.6,1.65705352]
[1770145335423,0.31544893,2122.3,2120.5,1.17896722]
[1770145335608,13.14834114,2122.3,2120.5,1.17896722]
[1770145335806,13.14834114,2122.3,2120.4,1.17898218]
[1770145336025,13.14834114,2122.3,2120.2,4.71639439]
[1770145336226,13.14834114,2122.3,2120.4,1.17901311]
[1770145336428,14.14772632,2122.2,2120.5,0.58951409]
[1770145336706,13.82189221,2122.1,2120.2,1.17913404]
[1770145337314,1.31483411,2122.2,2120.2,1.17913404]
[1770145337315,0.0011,2123.9,2121.9,9.33040443]
[1770145337536,2.3893276,2124.6,2123.4,0.00942019]
[1770145337537,0.04847572,2124.5,2123.4,0.00942019]
[1770145337737,0.04847572,2124.5,2122.8,0.00942019]
[1770145337738,0.0011,2124.6,2123.3,0.99842019]
[1770145337939,12.83289221,2125.6,2123.5,0.00942019]
[1770145338124,0.00942019,2125.0,2123.3,0.989]
[1770145338326,0.00942019,2125.0,2123.4,0.989]
[1770145338525,0.00942019,2124.6,2123.4,0.989]
[1770145338729,12.8423124,2125.0,2123.2,0.989]
[1770145338908,0.00942019,2124.6,2123.2,0.989]
[1770145339436,0.00942019,2124.8,2123.2,0.989]
[1770145339750,0.00942019,2124.3,2123.2,1.67666093]
[1770145340049,0.00942019,2124.1,2123.2,0.989]
[1770145340336,0.00942019,2124.0,2122.1,0.2335703]
[1770145340511,0.00942019,2124.0,2122.5,0.989]
[1770145342344,0.31544893,2123.9,2122.6,1.17780081]
[1770145342527,0.31544893,2123.9,2122.7,0.68780041]
[1770145343723,0.0011,2124.8,2123.2,0.00942019]
[1770145343924,0.0011,2124.8,2123.4,0.2335703]
[1770145344131,0.0011,2125.5,2123.6,0.2335703]
[1770145344453,0.0011,2125.5,2124.1,1.17696906]
[1770145344656,0.0011,2125.5,2124.2,1.57748453]
[1770145345320,0.00942019,2125.4,2124.2,0.58848453]
[1770145345515,0.00942019,2125.3,2123.9,0.989]
[1770145345812,0.00942019,2125.3,2124.0,1.17701684]
[1770145346253,0.00942019,2125.3,2123.9,0.989]
[1770145346552,0.00942019,2125.1,2123.9,0.989]
[1770145346747,0.00942019,2125.0,2123.9,0.989]
[1770145347554,12.87611612,2125.0,2123.9,0.989]
[1770145347852,0.00942019,2124.8,2123.5,1.17726199]
[1770145348154,12.86669593,2125.0,2123.7,4.70875784]
[1770145348449,12.86669593,2125.0,2123.2,0.988]
[1770145348749,0.00942019,2124.2,2123.2,0.988]
[1770145348955,0.00942019,2124.1,2123.2,0.988]
[1770145349456,0.00942019,2123.8,2122.7,0.988]
[1770145349657,0.00942019,2123.8,2122.3,1.1779423]
[1770145349970,12.87611612,2123.8,2122.4,1.57700244]
[1770145350427,12.87611612,2123.8,2122.4,0.988]
[1770145350632,12.86669593,2123.6,2121.7,4.71298784]
[1770145350933,12.86669593,2123.6,2122.0,1.1781264]
[1770145351133,12.86669593,2123.5,2121.9,0.988]
[1770145351382,12.86669593,2123.3,2121.0,0.00942019]
[1770145351680,12.86669593,2122.9,2120.6,4.71543594]
[1770145351824,12.86669593,2122.5,2120.1,0.00942019]
[1770145352024,12.86669593,2122.3,2120.6,1.17887523]
[1770145352371,12.86669593,2122.3,2119.9,0.00942019]
[1770145352531,12.86669593,2122.3,2120.4,1.17898241]
[1770145353742,13.85469593,2122.3,2120.4,1.1884026]
[1770145353949,13.85469593,2122.3,2120.4,1.17898241]
[1770145354179,13.85469593,2122.3,2121.4,0.001]
[1770145354869,0.31544893,2122.2,2121.4,0.001]
[1770145355766,12.86669593,2124.3,2121.8,0.00942019]
[1770145355983,12.86669593,2124.3,2123.2,0.00942019]
[1770145356297,0.0011,2124.4,2122.8,0.00942019]
[1770145356565,0.00942019,2123.2,2122.8,1.17768984]
[1770145356736,0.00942019,2123.2,2122.8,0.2335703]
[1770145356932,1.18511501,2126.2,2122.8,0.2335703]
[1770145356933,0.00942019,2123.8,2122.8,0.84580605]
[1770145357152,0.00942019,2124.1,2122.8,0.84580605]
[1770145357353,0.00942019,2124.0,2122.8,0.84580605]
[1770145357570,0.0011,2124.4,2122.8,0.84580605]
[1770145357772,0.00942019,2124.2,2123.0,0.2335703]
[1770145357971,0.00942019,2124.8,2123.2,0.2335703]
[1770145358171,0.00942019,2124.4,2123.4,0.2335703]
[1770145358373,0.00942019,2124.8,2123.4,0.2335703]
[1770145358581,0.00942019,2124.3,2123.5,1.17730162]
[1770145358787,0.00942019,2124.2,2123.6,0.58865081]
[1770145358991,0.00942019,2124.3,2123.6,0.58865081]
[1770145359204,0.00942019,2124.0,2123.6,0.58865081]
[1770145359360,0.00942019,2124.0,2123.5,0.988]
[1770145359559,0.00942019,2124.2,2123.5,0.988]
[1770145359760,0.00942019,2124.0,2123.5,0.988]
[1770145359978,0.00942019,2123.9,2123.5,0.988]
[1770145360795,0.01177191,2124.0,2123.5,2.16530055]
[1770145360978,0.01177191,2124.1,2123.5,0.988]
[1770145361156,0.01177191,2124.1,2123.5,1.6754839]
[1770145361356,0.01177191,2124.2,2123.5,0.988]
[1770145361557,0.01177191,2123.9,2123.5,0.988]
[1770145363194,0.01177191,2124.2,2123.5,0.988]
[1770145363561,0.01177191,2124.1,2123.5,0.988]
[1770145363769,0.01177191,2124.0,2123.5,0.988]
[1770145364193,0.01177191,2123.9,2123.5,0.988]
[1770145364666,0.01177191,2124.0,2123.5,0.988]
[1770145364861,0.01177191,2123.8,2123.5,0.988]
[1770145365065,0.01177191,2123.8,2122.9,2.16562931]
[1770145365396,0.01177191,2123.6,2122.9,1.67564289]
[1770145365606,0.01177191,2123.6,2122.9,0.988]
[1770145366105,0.01177191,2123.6,2123.0,0.001]
[1770145369007,0.01177191,2124.0,2123.0,0.001]
[1770145369169,0.0011,2124.1,2123.0,0.001]
[1770145370005,0.01177191,2124.0,2123.0,0.001]
[1770145370216,0.01177191,2123.8,2123.0,0.001]
[1770145370424,0.01177191,2124.0,2123.0,0.001]
[1770145370778,0.01177191,2123.8,2123.0,0.001]
[1770145370980,0.01177191,2123.7,2123.0,0.001]
[1770145371218,0.99,2122.7,2120.9,3.35348341]
[1770145371506,1.29,2123.6,2121.0,9.42577683]
[1770145371507,0.01177191,2123.3,2121.0,9.42577683]
[1770145371706,0.01177191,2123.5,2121.5,12.63774966]
[1770145371871,1.28383278,2124.1,2121.9,12.62597775]
[1770145372078,0.95367648,2124.0,2122.2,0.01177191]
[1770145372319,0.0011,2124.1,2122.7,0.01177191]
[1770145372482,0.0011,2124.1,2122.8,0.988]
[1770145372888,0.0011,2124.1,2122.7,0.01177191]
[1770145373097,0.1024,2123.9,2122.2,12.62597775]
[1770145373296,0.1024,2123.9,2122.3,2.25059778]
[1770145374306,0.95428351,2123.8,2122.3,2.25059778]
[1770145374487,0.1024,2123.9,2122.3,2.25059778]
[1770145374810,0.1024,2123.8,2122.2,0.988]
[1770145375125,0.0011,2124.1,2122.6,0.01177191]
[1770145375279,0.0011,2124.1,2122.7,0.01177191]
[1770145375584,0.0011,2124.1,2122.9,0.01177191]
[1770145375906,0.0011,2124.1,2123.0,0.988]
[1770145376126,0.0011,2124.1,2123.0,2.26647782]
[1770145376286,0.0011,2124.1,2123.2,0.01177191]
[1770145376602,0.0011,2124.3,2123.3,0.01177191]
[1770145377011,0.0011,2124.3,2123.2,11.78500628]
[1770145377799,0.0011,2125.2,2123.5,11.78500628]
[1770145378012,0.0011,2125.2,2123.0,3.45577375]
[1770145378013,0.0011,2125.2,2123.7,11.78500628]
[1770145378213,0.0011,2125.2,2123.8,12.77300628]
[1770145378718,0.0011,2125.2,2123.8,11.78500628]
[1770145379010,0.0011,2125.2,2123.2,4.965]
[1770145379011,0.0011,2125.2,2123.9,0.988]
[1770145379492,0.0011,2125.2,2124.0,12.96203076]
[1770145379680,0.0011,2125.2,2124.1,13.65081915]
[1770145380207,0.0011,2125.2,2124.0,1.17702448]
[1770145380377,0.0011,2125.2,2123.9,1.17703661]
[1770145380709,0.0011,2125.2,2123.9,12.96208568]
[1770145380886,0.0011,2125.2,2123.9,11.78500628]
[1770145381086,0.0011,2125.2,2123.4,11.78500628]
[1770145381313,0.0011,2125.0,2123.5,2.16650063]
[1770145381615,0.0011,2125.0,2123.5,0.988]
[1770145381788,1.18033278,2124.7,2122.4,11.78500628]
[1770145381980,0.1024,2124.5,2122.5,0.988]
[1770145382300,1.18033278,2124.8,2123.4,1.17735575]
[1770145382481,0.1035,2125.0,2123.6,1.17722325]
[1770145382683,0.1035,2125.0,2123.5,0.988]
[1770145382910,0.1035,2125.0,2123.5,1.5577564]
[1770145383207,1.28383278,2125.0,2123.5,0.988]
[1770145383378,0.0011,2125.0,2123.6,1.17724618]
[1770145383582,0.0011,2125.0,2123.1,0.01177191]
[1770145383797,2.23598395,2124.9,2122.8,1.17766074]
[1770145383983,0.1024,2124.5,2122.9,0.988]
[1770145384188,1.28273278,2124.3,2122.5,11.78500628]
[1770145384534,1.28273278,2124.3,2121.6,6.999056]
[1770145384535,0.1024,2124.1,2122.6,0.988]
[1770145384677,1.18033278,2123.9,2122.4,0.988]
[1770145385015,1.55268742,2124.0,2122.4,2.16587057]
[1770145385016,0.95325117,2123.8,2122.4,2.16587057]
[1770145385193,0.85085117,2123.7,2122.9,0.01177191]
[1770145385386,1.18033278,2124.7,2123.5,0.01177191]
[1770145385582,0.0011,2125.0,2123.6,0.988]
[1770145385779,0.0011,2125.0,2123.3,11.78500628]
[1770145385780,1.18033278,2124.8,2123.3,11.78500628]
[1770145386006,1.18033278,2124.8,2123.7,0.988]
[1770145386519,1.18033278,2124.5,2123.2,0.988]
[1770145386879,1.18033278,2124.3,2123.2,0.988]
[1770145387136,1.18033278,2123.9,2123.2,0.988]
[1770145387310,0.27330202,2123.8,2123.2,0.988]
[1770145387513,1.18033278,2124.1,2123.2,0.988]
[1770145387821,1.18033278,2124.0,2123.2,0.988]
[1770145388003,1.18033278,2124.1,2123.2,0.988]
[1770145388405,1.18033278,2124.1,2122.1,11.78500628]
[1770145388406,1.18033278,2123.7,2122.1,11.78500628]
[1770145388610,1.18033278,2123.5,2122.0,0.988]
[1770145388818,0.27330202,2123.5,2122.0,12.77300628]
[1770145389041,2.16833278,2124.0,2122.4,1.17791179]
[1770145389247,1.18033278,2123.9,2122.3,12.96297356]
[1770145389659,1.19210469,2123.9,2122.0,0.988]
[1770145389808,1.18033278,2123.9,2122.3,1.17795984]
[1770145390010,0.1024,2123.8,2122.3,1.17795984]
[1770145390211,1.4638748,2123.8,2122.4,0.988]
[1770145390743,0.28354202,2123.8,2122.4,0.988]
[1770145391039,1.56445933,2124.0,2122.5,1.1778563]
[1770145391040,1.18033278,2124.0,2122.5,1.1778563]
[1770145391249,1.18033278,2124.1,2122.5,1.1778563]
[1770145391586,1.18033278,2124.3,2122.8,0.01177191]
[1770145391868,2.16833278,2124.7,2122.9,11.79677819]
[1770145392010,1.4549548,2125.0,2123.1,11.78500628]
[1770145392367,1.481097,2124.9,2123.2,12.98686394]
[1770145392506,1.481097,2124.9,2122.7,0.001]
[1770145392507,0.01177191,2124.1,2122.7,0.001]
[1770145392708,0.01177191,2124.0,2122.7,0.001]
[1770145392906,0.0011,2123.9,2122.7,0.001]
[1770145393537,1.19210469,2124.3,2122.7,0.001]
[1770145393538,1.19356342,2125.1,2124.9,3.37947228]
[1770145393836,5.50127636,2126.0,2124.5,1.27252392]
[1770145393837,13.0,2126.7,2125.0,0.988]
[1770145394005,13.0,2126.7,2125.7,1.26454773]
[1770145394006,1.15339568,2126.1,2125.7,1.26454773]
[1770145394205,1.15339568,2126.1,2125.8,1.99963818]
[1770145394440,13.0,2126.7,2125.9,1.00912792]
[1770145394641,0.0011,2126.8,2126.1,1.26454773]
[1770145394935,0.01411366,2126.7,2126.3,1.26454773]
[1770145395108,0.01411366,2126.7,2126.1,1.26454773]
[1770145395109,0.01411366,2126.6,2126.1,1.26454773]
[1770145395303,1.15339568,2126.6,2125.8,1.26454773]
[1770145395610,0.01411366,2126.7,2126.1,0.988]
[1770145395956,1.15339568,2126.7,2126.1,0.988]
[1770145396129,1.15339568,2126.7,2126.2,1.00630235]
[1770145396327,1.15339568,2126.7,2126.1,0.988]
[1770145396638,1.15339568,2126.7,2126.2,0.987]
[1770145396847,1.15339568,2126.7,2126.2,2.16277673]
[1770145397028,0.01411366,2127.0,2126.3,1.00416678]
[1770145397344,0.01411366,2127.0,2126.4,0.987]
[1770145397345,0.28971051,2127.0,2126.4,0.987]
[1770145397543,0.28971051,2126.9,2126.1,2.16283017]
[1770145397706,0.28971051,2127.1,2126.2,1.00225678]
[1770145398024,0.28971051,2127.1,2126.1,2.16282259]
[1770145398228,0.28971051,2127.1,2126.2,2.8647191]
[1770145398539,0.28971051,2127.1,2126.2,1.86244514]
[1770145398740,0.28971051,2127.1,2126.2,0.68664742]
[1770145399044,0.28971051,2127.1,2126.3,0.987]
[1770145399332,13.0,2127.5,2126.3,2.16274871]
[1770145399536,0.28971051,2127.3,2126.4,0.28493961]
[1770145400110,0.28971051,2127.2,2126.4,0.28493961]
[1770145400436,0.28971051,2127.4,2126.5,0.987]
[1770145400605,13.0,2127.5,2126.5,0.987]
[1770145400809,0.28971051,2127.4,2126.5,0.987]
[1770145401338,0.0011,2127.7,2126.8,0.2335703]
[1770145401524,0.28971051,2127.6,2126.8,0.2335703]
[1770145401725,13.28971051,2127.6,2126.5,0.987]
[1770145401939,13.0,2127.4,2126.2,1.17578399]
[1770145402129,13.0,2127.4,2126.3,0.987]
[1770145402339,13.28971051,2127.3,2126.3,0.987]
[1770145402845,13.28971051,2127.2,2126.3,0.987]
[1770145403045,14.32897105,2127.1,2126.3,0.987]
[1770145403247,14.61868156,2127.1,2126.3,0.987]
[1770145404048,14.61868156,2127.1,2125.8,1.17602206]
[1770145404266,14.61868156,2127.1,2126.0,0.987]
[1770145404423,14.61868156,2127.1,2126.2,1.17580269]
[1770145404617,14.61868156,2127.1,2126.3,1.17573095]
[1770145404618,13.28971051,2127.1,2126.3,1.17573095]
[1770145404830,0.01411366,2128.5,2126.3,1.17573095]
[1770145404831,13.0011,2127.7,2126.3,1.17573095]
[1770145405031,0.28971051,2127.6,2126.4,0.2335703]
[1770145405230,0.28971051,2127.6,2126.5,0.99646641]
[1770145405438,0.0011,2127.2,2126.5,0.001]
[1770145405660,0.0011,2127.2,2126.5,0.988]
[1770145405973,13.28971051,2127.1,2126.5,0.001]
[1770145406755,0.0011,2127.2,2126.5,0.001]
[1770145407055,0.29081051,2127.2,2126.5,0.001]
[1770145407256,0.28971051,2127.1,2126.6,0.987]
[1770145407949,0.0011,2127.2,2126.6,2.16258428]
[1770145408150,13.0,2127.6,2126.8,0.2335703]
[1770145408356,0.09303768,2127.6,2126.7,0.6865926]
[1770145409163,13.10715134,2127.6,2126.5,0.001]
[1770145409347,13.09303768,2127.6,2126.5,0.001]
[1770145410350,13.0,2127.4,2126.5,0.001]
[1770145410842,13.01411366,2127.2,2125.8,0.986]
[1770145411042,13.0,2127.2,2125.8,0.986]
[1770145411267,13.0,2127.0,2126.0,1.17591377]
[1770145411470,13.0,2127.0,2125.9,1.17592558]
[1770145411765,13.09103768,2126.9,2125.8,2.16200364]
[1770145412063,13.09103768,2126.9,2125.9,0.986]
[1770145413541,13.09103768,2126.9,2126.0,1.17591721]
[1770145413743,13.09103768,2126.9,2126.1,0.68655861]
[1770145414250,13.09103768,2126.9,2126.2,0.986]
[1770145415165,13.09103768,2126.9,2126.1,0.986]
[1770145415464,13.09103768,2126.9,2126.1,0.9554]
[1770145415668,13.09103768,2126.9,2126.1,2.13124018]
[1770145415873,0.0011,2127.7,2126.2,0.2335703]
[1770145416040,0.0011,2127.7,2126.5,1.26454773]
[1770145416370,0.0011,2127.7,2126.6,2.21531822]
[1770145416543,0.0011,2127.7,2126.7,0.99574792]
[1770145416883,13.0011,2127.7,2126.8,0.986]
[1770145417243,13.0011,2127.7,2126.5,1.26454773]
[1770145417444,13.0011,2127.7,2126.2,3.23592127]
[1770145417445,14.31422366,2127.6,2126.3,1.1757513]
[1770145417643,14.30011,2127.6,2126.4,1.98288613]
[1770145417941,14.30011,2127.6,2126.5,0.99688613]
[1770145418142,14.30011,2127.6,2126.4,0.986]
[1770145418337,14.30011,2127.6,2126.5,0.99793301]
[1770145418649,13.85424717,2127.5,2126.4,0.986]
[1770145418858,13.85424717,2127.5,2126.5,0.99917812]
[1770145419038,13.0011,2127.5,2126.6,0.99817812]
[1770145419244,13.0011,2127.5,2126.7,1.98594188]
[1770145419444,13.0011,2127.5,2126.7,0.986]
[1770145420267,13.0011,2127.5,2126.7,3.42603496]
[1770145420470,13.0011,2127.5,2126.8,0.99991637]
[1770145420841,13.0011,2127.5,2126.9,0.986]
[1770145421044,13.0011,2127.5,2127.0,1.00240248]
[1770145421245,13.0011,2127.5,2127.1,1.00521235]
[1770145421449,13.0011,2127.5,2126.9,0.986]
[1770145422043,13.0011,2127.5,2126.7,1.0678749]
[1770145422246,12.93674116,2127.3,2126.6,0.986]
[1770145422459,12.93674116,2127.3,2126.7,1.17549834]
[1770145422662,12.93674116,2129.1,2127.1,1.89189275]
[1770145422976,12.69180952,2129.1,2128.0,1.65832245]
[1770145423175,12.69180952,2129.1,2128.1,0.986]
[1770145423484,12.69180952,2129.1,2128.1,2.64432245]
[1770145423974,12.93674116,2128.9,2128.0,1.65832245]
[1770145424183,14.23182664,2128.9,2128.2,1.65832245]
[1770145424401,0.01411366,2129.4,2128.4,1.65832245]
[1770145424545,12.95085482,2129.5,2128.6,1.65832245]
[1770145424546,12.93674116,2129.5,2128.6,1.65832245]
[1770145424747,0.1372537,2129.7,2129.0,1.65832245]
[1770145424948,13.07399486,2129.7,2129.2,1.65832245]
[1770145425173,13.07399486,2129.7,2128.3,4.18820092]
[1770145425174,14.38139435,2129.7,2128.6,2.52909546]
[1770145425375,0.25904833,2131.1,2128.7,2.52909546]
[1770145425612,12.93674116,2131.2,2129.6,3.70302483]
[1770145425761,12.93674116,2131.2,2129.9,0.2335703]
[1770145425957,12.93674116,2131.7,2130.4,2.76266576]
[1770145426158,12.93674116,2131.7,2130.6,0.2335703]
[1770145426382,0.0011,2131.8,2130.7,0.2335703]
[1770145426694,12.95085482,2131.5,2130.1,2.52909546]
[1770145426871,12.95085482,2131.5,2130.5,0.986]
[1770145427072,12.95085482,2131.2,2129.8,2.52909546]
[1770145427274,12.95085482,2130.9,2129.8,0.986]
[1770145427573,1.29649685,2130.8,2129.8,0.986]
[1770145427886,12.95085482,2131.2,2129.8,0.986]
[1770145428181,12.93674116,2131.2,2129.9,0.986]
[1770145428519,12.93674116,2130.9,2129.9,0.986]
[1770145429661,12.95085482,2131.4,2130.0,0.2335703]
[1770145429864,0.0011,2131.6,2130.0,0.94241129]
[1770145430185,0.0011,2131.6,2130.0,3.47150675]
[1770145430374,0.0011,2131.6,2130.0,0.94241129]
[1770145430572,0.0011,2131.6,2130.2,0.2335703]
[1770145430772,0.0011,2131.6,2130.1,0.1024]
[1770145430773,0.0011,2131.6,2130.1,0.2335703]
[1770145430980,0.0011,2131.6,2130.1,0.54378529]
[1770145431159,12.9363492,2131.6,2130.1,0.54378529]
[1770145431562,12.9363492,2131.6,2130.2,2.15856265]
[1770145431966,0.0011,2130.7,2130.2,2.15856265]
[1770145432168,0.0011,2132.4,2130.7,5.42345048]
[1770145432379,0.0011,2132.4,2130.2,2.15856265]
[1770145432380,0.0011,2132.7,2130.8,1.69179061]
[1770145432579,0.01411366,2132.6,2131.0,0.2335703]
[1770145432780,12.9352492,2132.6,2130.6,0.1024]
[1770145433079,12.9352492,2132.6,2131.1,0.985]
[1770145433600,0.01411366,2132.7,2131.1,0.985]
[1770145433601,12.62042813,2132.4,2131.1,0.985]
[1770145433806,12.62042813,2132.0,2130.8,0.985]
[1770145434105,12.62042813,2132.0,2130.6,0.46935301]
[1770145434280,0.01411366,2132.1,2130.6,0.985]
[1770145434281,12.63454179,2131.7,2130.6,0.985]
[1770145434814,12.62042813,2131.5,2130.1,0.31021499]
[1770145434985,12.62042813,2131.5,2130.3,0.985]
[1770145435376,12.63454179,2130.9,2128.9,1.17431537]
[1770145435710,0.01411366,2129.5,2127.9,2.52909546]
[1770145435871,12.62042813,2129.8,2127.6,20.32589347]
[1770145436071,13.51133112,2129.7,2128.4,4.69833059]
[1770145436275,0.01411366,2129.6,2127.7,3.348538]
[1770145436475,12.63454179,2129.5,2127.8,0.985]
[1770145436910,12.63454179,2129.3,2127.8,0.985]
[1770145437575,12.62042813,2129.3,2127.8,2.15988437]
[1770145437776,12.62042813,2129.3,2127.8,0.985]
[1770145438096,12.62042813,2129.1,2127.8,0.985]
[1770145438297,12.63454179,2128.6,2126.7,0.001]
[1770145438606,12.63454179,2128.6,2126.9,1.1753847]
[1770145438905,13.60542813,2128.5,2126.9,1.17541832]
[1770145439104,13.60542813,2128.5,2126.8,0.985]
[1770145439303,0.89090299,2128.4,2126.8,0.985]
[1770145439635,0.01411366,2128.4,2126.8,0.985]
[1770145439828,0.01411366,2128.3,2127.0,1.17536436]
[1770145439989,0.01411366,2128.2,2127.1,6.78729713]
[1770145440188,0.00940004,2129.6,2128.4,0.02822732]
[1770145440426,12.62042813,2130.2,2128.6,0.2335703]
[1770145440716,0.00940004,2129.9,2127.9,9.14702867]
[1770145440902,0.00940004,2129.7,2128.4,0.1024]
[1770145441090,0.00940004,2129.6,2128.3,0.2335703]
[1770145441292,0.00940004,2130.4,2128.5,0.2335703]
[1770145441493,0.00940004,2129.8,2128.5,0.2335703]
[1770145441692,0.00940004,2129.8,2128.6,1.17448087]
[1770145441919,0.00940004,2130.0,2128.6,1.17448087]
[1770145442129,0.00940004,2130.2,2128.7,0.2335703]
[1770145442431,0.00940004,2130.0,2128.7,0.61059747]
[1770145442726,0.00940004,2129.9,2128.7,0.61059747]
[1770145443224,0.00940004,2130.0,2128.8,0.2335703]
[1770145443419,0.00940004,2130.0,2128.9,0.985]
[1770145443918,0.00940004,2130.0,2129.0,1.17426021]
[1770145444213,0.00940004,2130.1,2129.1,0.68563287]
[1770145444518,0.00940004,2130.1,2128.9,2.1593115]
[1770145444693,0.00940004,2130.1,2129.1,0.001]
[1770145445091,0.00940004,2130.0,2129.1,0.001]
[1770145445396,0.00940004,2129.8,2129.1,0.001]
[1770145445802,0.00940004,2129.7,2129.1,0.001]
[1770145446417,0.00940004,2129.6,2129.1,0.001]
[1770145446615,0.00940004,2129.3,2128.2,0.985]
[1770145447016,0.00940004,2129.6,2128.2,5.68371546]
[1770145447218,0.00940004,2129.5,2128.3,0.56837155]
[1770145447422,0.00940004,2129.3,2128.2,2.15966342]
[1770145447614,0.00940004,2129.5,2128.6,1.17447823]
[1770145447922,12.62042813,2129.8,2128.3,0.2335703]
[1770145448120,12.62042813,2129.8,2128.4,4.69829219]
[1770145448620,0.00940004,2129.7,2128.4,1.17459124]
[1770145448918,0.00940004,2129.6,2128.5,0.58729562]
[1770145449123,1.27332286,2129.7,2128.5,0.58729562]
[1770145449701,12.62042813,2129.8,2128.5,0.58729562]
[1770145450017,0.00940004,2129.6,2128.5,0.58729562]
[1770145450209,0.00940004,2129.6,2128.4,1.1745883]
[1770145450408,0.00940004,2129.3,2128.2,0.985]
[1770145450608,0.00940004,2129.3,2128.2,2.15967022]
[1770145450808,0.00940004,2129.3,2128.2,0.985]
[1770145451034,0.00940004,2129.3,2128.2,1.67098889]
[1770145451212,0.00940004,2129.3,2128.2,0.985]
[1770145451400,0.00940004,2129.4,2128.2,0.985]
[1770145451603,0.00940004,2128.5,2127.5,2.52909546]
[1770145451828,0.00940004,2128.5,2126.7,0.001]
[1770145451829,0.00940004,2127.6,2126.9,1.17538333]
[1770145451993,0.00940004,2127.7,2126.7,0.001]
[1770145452329,0.00940004,2128.7,2126.7,0.001]
[1770145452536,0.99440004,2128.6,2126.7,0.001]
[1770145452697,0.00940004,2128.2,2126.7,0.001]
[1770145453623,0.00940004,2128.1,2126.7,0.001]
[1770145453826,0.00284796,2130.6,2128.5,7.47433265]
[1770145454029,12.62042813,2131.0,2128.6,3.24664658]
[1770145454192,10.19445557,2131.9,2128.7,0.985]
[1770145454193,0.00704308,2129.1,2128.7,0.985]
[1770145454392,0.00704308,2130.0,2128.7,0.985]
[1770145454592,0.00704308,2129.9,2128.8,0.2335703]
[1770145454818,0.00704308,2129.4,2128.7,0.985]
[1770145455021,0.00704308,2129.3,2128.7,0.985]
[1770145455218,0.00704539,2129.5,2128.7,0.985]
[1770145455519,0.00704539,2129.5,2128.8,0.38267264]
[1770145455697,0.00704539,2129.1,2128.7,0.985]
[1770145456093,0.00704589,2129.5,2128.7,2.15938575]
[1770145456600,0.00704589,2129.4,2128.7,2.15938575]
[1770145457195,0.00704589,2129.3,2128.8,0.3359703]
[1770145457428,0.00704589,2130.9,2129.5,0.2335703]
[1770145457722,0.00704589,2130.6,2129.6,2.75435533]
[1770145457922,0.00704589,2130.6,2129.7,0.27543553]
[1770145458098,0.00704589,2130.7,2129.8,1.17381913]
[1770145458299,0.00704589,2130.5,2129.8,0.985]
[1770145458697,0.00704589,2132.4,2130.3,1.66695533]
[1770145458897,0.00704589,2132.4,2130.4,1.2185703]
[1770145458898,0.00704589,2131.4,2130.4,1.2185703]
[1770145459097,0.00704589,2131.4,2130.5,1.27355256]
[1770145459312,0.00704589,2131.4,2130.5,0.985]
[1770145460498,0.00704589,2131.4,2130.5,2.15840163]
[1770145460894,0.00704589,2131.4,2130.5,2.15842587]
[1770145461116,0.00704589,2131.4,2130.5,0.985]
[1770145461315,0.00704589,2131.4,2130.5,2.15842962]
[1770145461627,0.00704589,2131.4,2130.5,0.985]
[1770145461825,0.00704589,2131.4,2129.9,6.36197891]
[1770145461826,0.00704589,2131.1,2129.9,6.36197891]
[1770145461997,0.00704589,2131.1,2129.6,4.69570558]
[1770145461998,0.00704589,2131.1,2130.0,3.04492642]
[1770145462198,0.00704589,2131.1,2130.1,1.17364976]
[1770145462498,0.00704589,2131.2,2130.1,4.69447603]
[1770145463410,0.00704589,2131.3,2130.1,1.17365381]
[1770145463820,0.00704589,2131.3,2130.2,1.0010332]
[1770145463998,0.00704589,2131.3,2130.3,1.0010332]
[1770145464339,0.00704589,2131.2,2130.1,1.17365381]
[1770145464623,0.00704589,2131.2,2130.2,1.68655954]
[1770145464826,0.00704589,2132.3,2130.3,1.0012181]
[1770145464827,12.15621403,2131.9,2130.3,1.0012181]
[1770145465122,0.00704589,2131.5,2130.4,1.0012181]
[1770145465329,0.00704589,2131.5,2130.5,1.0012181]
[1770145465525,0.00704589,2131.5,2130.2,0.68534144]
[1770145465698,0.00704589,2131.4,2130.3,1.35353357]
[1770145465898,0.00704589,2131.2,2130.3,0.35259506]
[1770145466098,0.00704589,2131.2,2130.0,2.15867233]
[1770145466300,0.00704589,2131.2,2130.1,1.00093709]
[1770145466501,0.00704589,2131.2,2130.2,1.00093709]
[1770145466725,0.00704589,2131.1,2130.1,1.17364651]
[1770145466928,0.00704589,2130.9,2130.1,0.985]
[1770145467908,12.15621403,2131.5,2130.2,1.17359526]
[1770145468138,0.87337469,2131.4,2130.2,1.17359526]
[1770145468444,12.15621403,2132.4,2130.6,1.17337839]
[1770145468740,0.0011,2132.5,2130.7,1.00085863]
[1770145468741,0.00704589,2132.0,2130.7,1.00085863]
[1770145468939,0.00704589,2131.9,2130.8,0.985]
[1770145469233,12.15621403,2132.1,2130.8,0.985]
[1770145469405,1.2156214,2132.0,2130.9,1.00142909]
[1770145469605,12.16325992,2131.9,2130.4,2.84040685]
[1770145469846,12.16325992,2131.9,2130.5,2.17498041]
[1770145470027,12.15621403,2131.9,2130.6,1.00157816]
[1770145470547,12.16325992,2131.9,2130.4,0.985]
[1770145470749,13.0949498,2131.8,2130.5,1.00140278]
[1770145470908,13.0949498,2131.8,2130.4,0.985]
[1770145470909,12.15621403,2131.6,2130.4,0.985]
[1770145471937,12.15621403,2131.6,2130.5,0.001]
[1770145472507,12.15621403,2131.6,2129.9,1.66695533]
[1770145472508,12.16325992,2131.3,2130.3,0.001]
[1770145472730,1.2156214,2131.2,2130.3,0.001]
[1770145472938,13.37183543,2131.2,2130.3,0.001]
[1770145473121,12.15621403,2131.0,2129.8,1.17380651]
[1770145473432,12.15621403,2131.0,2129.9,1.00139553]
[1770145473606,12.15621403,2131.0,2129.8,1.17380651]
[1770145473806,13.0949498,2131.0,2129.9,1.68670072]